bitfinex-derivatives/quotes_BTCF0:USTF0_20260315
["timestamp","ask_amount","ask_price","bid_price","bid_amount"]
[1773598355445,0.08740013,71780.0,71769.0,0.041794]
[1773598356039,0.08740013,71780.0,71767.0,0.041795]
[1773598356240,0.06262386,71779.0,71767.0,0.041795]
[1773598356452,0.041786,71783.0,71764.0,1.5]
[1773598356839,0.041786,71783.0,71763.0,0.05904371]
[1773598357546,0.041786,71783.0,71763.0,1.55904371]
[1773598357942,0.041787,71782.0,71768.0,0.041794]
[1773598359449,0.06262386,71779.0,71768.0,0.041794]
[1773598359647,0.041787,71781.0,71768.0,0.041794]
[1773598360650,0.041788,71780.0,71768.0,0.041794]
[1773598361150,0.041788,71780.0,71766.0,0.041796]
[1773598363149,0.041788,71780.0,71767.0,0.041795]
[1773598363554,0.06262386,71783.0,71763.0,1.5]
[1773598363945,0.06262386,71783.0,71766.0,0.041795]
[1773598364149,1.3917,71844.0,71772.0,0.05904371]
[1773598364150,0.06262386,71799.0,71772.0,0.05904371]
[1773598364346,0.06262386,71797.0,71772.0,0.05904371]
[1773598364658,0.06262386,71795.0,71772.0,0.05904371]
[1773598365945,0.041782,71791.0,71778.0,0.041788]
[1773598366156,0.041781,71792.0,71778.0,0.041788]
[1773598366449,0.041781,71791.0,71778.0,0.041788]
[1773598366850,0.06262386,71795.0,71772.0,0.05904371]
[1773598367055,0.10440286,71795.0,71782.0,0.041786]
[1773598367251,0.041778,71797.0,71776.0,0.05904371]
[1773598367552,0.06262386,71800.0,71780.0,0.08740013]
[1773598367754,0.06262386,71800.0,71776.0,0.05904371]
[1773598367755,0.0014,71799.0,71776.0,0.05904371]
[1773598367949,0.041779,71795.0,71783.0,0.041786]
[1773598368546,0.04178,71794.0,71781.0,0.041787]
[1773598369149,0.06262386,71795.0,71771.0,0.05904371]
[1773598369461,0.12918213,71790.0,71771.0,0.05904371]
[1773598369656,0.0014,71789.0,71771.0,0.05904371]
[1773598369863,0.0014,71789.0,71778.0,0.041788]
[1773598370553,0.06402386,71789.0,71778.0,0.041788]
[1773598370855,0.06262386,71784.0,71761.0,0.06044371]
[1773598371054,0.0014,71783.0,71770.0,0.05904371]
[1773598371249,0.0014,71783.0,71763.0,0.05904371]
[1773598371861,0.0014,71783.0,71770.0,0.08740013]
[1773598372170,0.05879299,71783.0,71764.0,0.0014]
[1773598372973,0.041787,71782.0,71770.0,0.041793]
[1773598373358,0.05739299,71779.0,71762.0,1.5]
[1773598373666,0.05739299,71776.0,71764.0,0.041797]
[1773598373870,0.0014,71775.0,71762.0,0.041798]
[1773598374374,0.041793,71771.0,71757.0,0.0418]
[1773598374769,0.041793,71771.0,71757.0,1.5418]
[1773598375659,0.041793,71771.0,71758.0,0.0418]
[1773598378368,0.041794,71769.0,71757.0,1.5]
[1773598378574,0.0014,71768.0,71756.0,0.041801]
[1773598379162,0.0014,71768.0,71756.0,1.541801]
[1773598380472,0.0014,71768.0,71756.0,0.041801]
[1773598380771,0.043195,71768.0,71756.0,0.041801]
[1773598381171,0.043195,71768.0,71754.0,1.50013302]
[1773598381172,0.0014,71768.0,71754.0,1.50013302]
[1773598382171,0.0014,71768.0,71756.0,0.041801]
[1773598386576,0.043195,71768.0,71756.0,0.041801]
[1773598389480,0.10058799,71768.0,71756.0,0.041801]
[1773598389676,0.05739299,71766.0,71754.0,0.00013302]
[1773598389883,0.041798,71763.0,71754.0,0.00013302]
[1773598390582,0.05739299,71764.0,71754.0,0.00013302]
[1773598393087,0.041798,71763.0,71754.0,0.00013302]
[1773598394986,0.09919099,71763.0,71754.0,0.00013302]
[1773598395383,0.05739299,71762.0,71754.0,0.00013302]
[1773598395687,0.0014,71761.0,71754.0,0.00013302]
[1773598396280,0.0014,71760.0,71754.0,0.00013302]
[1773598396985,0.05739299,71759.0,71742.0,1.5]
[1773598397182,0.09919299,71759.0,71747.0,0.041807]
[1773598398179,0.00013302,71758.0,71747.0,0.041807]
[1773598398588,0.0014,71760.0,71741.0,0.06036]
[1773598398886,0.0014,71760.0,71740.0,0.08740013]
[1773598398887,0.0014,71760.0,71751.0,0.041804]
[1773598399185,0.0014,71759.0,71749.0,0.041805]
[1773598399589,0.0014,71759.0,71744.0,0.06036]
[1773598400481,0.0014,71759.0,71744.0,1.56036]
[1773598401990,0.0014,71759.0,71748.0,0.041806]
[1773598402392,0.07406359,71789.0,71749.0,0.08740013]
[1773598402596,0.0014,71777.0,71761.0,0.06658532]
[1773598403184,0.08740013,71780.0,71761.0,0.06658532]
[1773598403385,0.0014,71777.0,71761.0,0.06658532]
[1773598403586,0.041791,71774.0,71761.0,0.10838332]
[1773598405489,0.041791,71774.0,71761.0,0.041798]
[1773598409297,0.0014,71777.0,71752.0,0.06658532]
[1773598409501,0.041793,71771.0,71759.0,0.0418]
[1773598409691,0.0014,71770.0,71759.0,0.0418]
[1773598410700,0.0014,71770.0,71760.0,0.041799]
[1773598411199,0.0014,71770.0,71761.0,0.041798]
[1773598413101,0.0014,71769.0,71763.0,0.10838232]
[1773598413399,0.0014,71769.0,71764.0,0.06658532]
[1773598414494,0.0014,71769.0,71761.0,0.041798]
[1773598417902,0.0014,71769.0,71762.0,0.041798]
[1773598420604,0.0014,71774.0,71760.0,0.15400023]
[1773598420808,0.0014,71781.0,71763.0,0.06658532]
[1773598421005,0.041786,71784.0,71772.0,0.041792]
[1773598421210,0.0014,71783.0,71772.0,0.041792]
[1773598421502,0.06603081,71783.0,71756.0,0.06658532]
[1773598421709,0.10781881,71780.0,71768.0,0.041794]
[1773598422010,0.0014,71779.0,71768.0,0.041794]
[1773598422400,0.0014,71779.0,71769.0,0.041794]
[1773598422910,0.0014,71779.0,71771.0,0.041793]
[1773598423604,0.0014,71778.0,71772.0,0.041792]
[1773598423808,0.10781681,71784.0,71772.0,0.041792]
[1773598423809,0.10781681,71784.0,71772.0,0.04109473]
[1773598424004,0.0014,71783.0,71772.0,0.04109473]
[1773598424211,0.0014,71783.0,71773.0,0.041791]
[1773598424710,0.0014,71782.0,71773.0,0.041791]
[1773598424909,0.0014,71781.0,71773.0,0.041791]
[1773598425410,0.0014,71781.0,71770.0,0.06658532]
[1773598425710,0.0014,71780.0,71774.0,0.041791]
[1773598425901,0.041784,71786.0,71774.0,0.041791]
[1773598426100,0.0014,71785.0,71774.0,0.041791]
[1773598426311,0.041784,71786.0,71774.0,0.041791]
[1773598426512,0.0014,71785.0,71774.0,0.041791]
[1773598426712,0.043185,71785.0,71772.0,0.041792]
[1773598426907,0.06743081,71784.0,71765.0,0.06658532]
[1773598427112,0.06603081,71779.0,71767.0,0.041795]
[1773598427311,0.10781981,71779.0,71768.0,0.041794]
[1773598427817,0.06603081,71779.0,71768.0,0.041794]
[1773598428408,0.041791,71774.0,71753.0,0.06658532]
[1773598428608,0.06743081,71773.0,71753.0,0.06658532]
[1773598429413,0.10922281,71773.0,71761.0,0.041798]
[1773598432908,0.043192,71773.0,71761.0,0.041798]
[1773598433109,0.06261486,71772.0,71761.0,0.041798]
[1773598435116,0.08741491,71771.0,71761.0,0.041798]
[1773598438610,0.08741491,71771.0,71752.0,0.16603832]
[1773598438611,0.06261486,71770.0,71752.0,0.16603832]
[1773598438811,0.06261486,71770.0,71750.0,0.16743832]
[1773598439011,0.06261486,71770.0,71748.0,0.06336924]
[1773598439221,0.041794,71769.0,71755.0,0.041802]
[1773598439407,0.06261486,71770.0,71748.0,0.06336924]
[1773598439612,0.0014,71773.0,71748.0,0.06336924]
[1773598439613,0.041793,71771.0,71748.0,0.06336924]
[1773598439813,0.08741491,71770.0,71748.0,0.06336924]
[1773598440623,0.06261486,71768.0,71748.0,0.06336924]
[1773598441416,0.06261486,71768.0,71754.0,0.041802]
[1773598445817,0.06261486,71768.0,71755.0,0.041802]
[1773598446121,0.06261486,71768.0,71756.0,0.041801]
[1773598446327,0.06261486,71785.0,71757.0,0.0014]
[1773598446519,0.041787,71781.0,71768.0,0.041794]
[1773598446829,0.04179,71776.0,71762.0,0.041798]
[1773598447030,0.041789,71778.0,71763.0,0.041797]
[1773598447229,0.041789,71778.0,71764.0,0.041797]
[1773598447726,0.10440386,71778.0,71764.0,0.041797]
[1773598447932,0.06261486,71777.0,71764.0,0.041797]
[1773598448428,0.0014,71776.0,71765.0,0.041796]
[1773598451331,0.06401486,71776.0,71765.0,0.041796]
[1773598453438,0.0014,71776.0,71766.0,0.041795]
[1773598463458,0.0014,71776.0,71766.0,0.041795]
[1773598464260,0.041793,71771.0,71759.0,0.0418]
[1773598464555,0.08741491,71770.0,71759.0,0.0418]
[1773598464757,0.041793,71771.0,71759.0,0.0418]
[1773598465554,0.041792,71773.0,71760.0,0.041799]
[1773598465760,0.041792,71773.0,71757.0,0.06180283]
[1773598466161,0.041792,71772.0,71759.0,0.041799]
[1773598467158,0.041792,71772.0,71759.0,0.04110179]
[1773598471866,0.14999388,71790.0,71761.0,0.06180283]
[1773598472053,0.041786,71784.0,71764.0,0.06180283]
[1773598472857,0.041786,71784.0,71772.0,0.041792]
[1773598473561,0.0014,71783.0,71772.0,0.041792]
[1773598474862,0.0014,71783.0,71771.0,0.041792]
[1773598476859,0.041784,71787.0,71768.0,0.06180283]
[1773598477059,0.0014,71786.0,71768.0,0.06180283]
[1773598477256,0.043184,71786.0,71773.0,0.041791]
[1773598477462,0.0014,71785.0,71773.0,0.041791]
[1773598477863,0.06257897,71791.0,71768.0,0.06180283]
[1773598478163,0.041782,71789.0,71777.0,0.041789]
[1773598478470,0.041782,71790.0,71778.0,0.041788]
[1773598478659,0.041781,71792.0,71778.0,0.041788]
[1773598479269,0.04318,71793.0,71780.0,0.041787]
[1773598479467,0.0014,71792.0,71781.0,0.041786]
[1773598479667,0.0014,71792.0,71779.0,0.041788]
[1773598479869,0.0014,71792.0,71776.0,0.06180283]
[1773598480866,0.043181,71792.0,71779.0,0.041788]
[1773598483172,0.0014,71792.0,71776.0,0.06180283]
[1773598483373,0.0014,71792.0,71782.0,0.041786]
[1773598484760,0.0014,71792.0,71779.0,0.041788]
[1773598484960,0.041783,71789.0,71777.0,0.041789]
[1773598485171,0.10436397,71784.0,71770.0,0.041793]
[1773598485476,0.13057448,71783.0,71764.0,0.0014]
[1773598485672,0.13057448,71783.0,71762.0,0.11670956]
[1773598485975,0.043186,71783.0,71763.0,0.0014]
[1773598486173,0.043186,71783.0,71771.0,0.041792]
[1773598487077,0.043186,71783.0,71772.0,0.041792]
[1773598487670,0.06397897,71783.0,71770.0,0.041793]
[1773598488969,0.041787,71781.0,71770.0,0.041793]
[1773598491278,0.06257897,71779.0,71763.0,0.0014]
[1773598491677,0.06257897,71779.0,71759.0,0.0014]
[1773598492580,0.041789,71778.0,71766.0,0.041795]
[1773598493974,0.06257897,71779.0,71759.0,0.0014]
[1773598494181,0.06257897,71779.0,71760.0,0.05802374]
[1773598494680,0.12917648,71780.0,71760.0,0.05802374]
[1773598494981,0.12917648,71780.0,71767.0,0.041795]
[1773598497980,0.041788,71779.0,71767.0,0.041795]
[1773598498384,0.041788,71779.0,71767.0,0.0410979]
[1773598498882,0.10152678,71779.0,71767.0,0.0410979]
[1773598499074,0.05973878,71777.0,71766.0,0.041796]
[1773598499271,0.0014,71776.0,71766.0,0.041796]
[1773598500377,0.0014,71776.0,71756.0,0.05802374]
[1773598500682,0.05973878,71775.0,71763.0,0.041797]
[1773598501182,0.05973878,71775.0,71755.0,0.22392969]
[1773598501374,0.05973878,71775.0,71756.0,0.05942374]
[1773598501682,0.0014,71776.0,71756.0,0.05942374]
[1773598503083,0.0014,71776.0,71765.0,0.041796]
[1773598506386,0.05973878,71775.0,71763.0,0.041797]
[1773598508083,0.05973878,71775.0,71764.0,0.041797]
[1773598510784,0.05973878,71775.0,71756.0,0.041801]
[1773598510991,0.041795,71768.0,71756.0,0.041801]
[1773598511290,0.0014,71767.0,71756.0,0.041801]
[1773598511488,0.0014,71767.0,71744.0,1.5014]
[1773598511489,0.05973878,71765.0,71744.0,1.5014]
[1773598511685,0.05973878,71761.0,71744.0,1.5]
[1773598511887,0.0014,71760.0,71744.0,1.5]
[1773598513086,0.0014,71760.0,71748.0,0.041806]
[1773598513792,0.0014,71760.0,71749.0,0.041805]
[1773598515393,0.06113878,71760.0,71749.0,0.041805]
[1773598517885,0.06113878,71760.0,71750.0,0.041805]
[1773598518089,0.0014,71760.0,71751.0,0.041804]
[1773598519590,0.0014,71760.0,71749.0,0.041805]
[1773598522386,0.08878848,71760.0,71749.0,0.041805]
[1773598526796,0.08878848,71760.0,71742.0,1.5]
[1773598527193,0.08878848,71760.0,71749.0,0.041805]
[1773598530494,0.041802,71756.0,71741.0,0.0014]
[1773598531000,0.041802,71756.0,71740.0,0.0014]
[1773598531600,0.10044236,71758.0,71745.0,0.041808]
[1773598531801,0.10044236,71758.0,71746.0,0.041807]
[1773598533998,0.5,71759.0,71737.0,1.5]
[1773598533999,0.05864136,71757.0,71737.0,1.5]
[1773598534204,0.05864136,71757.0,71739.0,0.0014]
[1773598534798,0.041802,71756.0,71739.0,0.0014]
[1773598534995,0.05864136,71747.0,71731.0,0.166603]
[1773598535299,0.5,71759.0,71736.0,0.06167505]
[1773598535300,0.0014,71752.0,71736.0,0.06167505]
[1773598535606,0.0014,71751.0,71737.0,0.06167505]
[1773598535801,0.0014,71750.0,71737.0,0.06167505]
[1773598536003,0.0014,71750.0,71744.0,0.041808]
[1773598536895,0.06004136,71758.0,71738.0,1.56167505]
[1773598537100,0.08746727,71770.0,71758.0,0.0418]
[1773598537401,0.049123,71772.0,71750.0,0.06167505]
[1773598537402,0.0014,71769.0,71750.0,0.06167505]
[1773598537702,0.0014,71768.0,71757.0,0.041801]
[1773598537907,0.041793,71771.0,71757.0,0.041801]
[1773598537908,0.0014,71767.0,71757.0,0.041801]
[1773598538099,0.0014,71766.0,71757.0,0.041801]
[1773598538300,0.13026127,71770.0,71757.0,0.041801]
[1773598538505,0.0014,71769.0,71757.0,0.041801]
[1773598539007,0.0014,71768.0,71757.0,0.041801]
[1773598539400,0.0014,71767.0,71757.0,0.041801]
[1773598539799,0.12926127,71770.0,71757.0,0.041801]
[1773598540008,0.0014,71769.0,71757.0,0.041801]
[1773598540211,0.12926127,71770.0,71757.0,0.041801]
[1773598540394,0.0014,71769.0,71757.0,0.041801]
[1773598540594,0.041794,71770.0,71757.0,0.041801]
[1773598540899,0.0014,71769.0,71757.0,0.041801]
[1773598541107,0.041794,71770.0,71757.0,0.041801]
[1773598541307,0.0014,71769.0,71757.0,0.041801]
[1773598541701,0.0014,71768.0,71757.0,0.041801]
[1773598542196,0.041794,71770.0,71757.0,0.041801]
[1773598542404,0.0014,71767.0,71757.0,0.041801]
[1773598542602,0.0014,71766.0,71757.0,0.041801]
[1773598542797,0.0014,71765.0,71757.0,0.041801]
[1773598543004,0.0014,71764.0,71757.0,0.041801]
[1773598543200,0.041794,71770.0,71757.0,0.041801]
[1773598543400,0.0014,71769.0,71757.0,0.041801]
[1773598543709,0.12926127,71770.0,71757.0,0.041801]
[1773598543909,0.043194,71769.0,71755.0,0.041802]
[1773598544211,0.041794,71769.0,71755.0,0.041802]
[1773598544405,0.0014,71768.0,71755.0,0.041802]
[1773598545203,0.041794,71769.0,71755.0,0.041802]
[1773598545403,0.0014,71768.0,71755.0,0.041802]
[1773598545807,0.0014,71767.0,71755.0,0.041802]
[1773598546312,0.0014,71766.0,71755.0,0.041802]
[1773598546704,0.041794,71769.0,71755.0,0.041802]
[1773598546900,0.0014,71768.0,71755.0,0.041802]
[1773598548114,0.041794,71769.0,71755.0,0.041802]
[1773598548305,0.0014,71768.0,71755.0,0.041802]
[1773598548705,0.0014,71767.0,71755.0,0.041802]
[1773598551714,0.08746727,71780.0,71768.0,0.041794]
[1773598551909,0.0014,71779.0,71768.0,0.041794]
[1773598552318,0.043189,71779.0,71766.0,0.041795]
[1773598552519,0.043189,71778.0,71766.0,0.041795]
[1773598552718,0.04179,71777.0,71765.0,0.041796]
[1773598553118,0.0014,71776.0,71765.0,0.041796]
[1773598556915,0.06484209,71776.0,71763.0,0.041797]
[1773598557116,0.08746727,71773.0,71761.0,0.041798]
[1773598557620,0.041781,71792.0,71779.0,0.041788]
[1773598557815,0.043181,71791.0,71779.0,0.041788]
[1773598558118,0.041782,71790.0,71777.0,0.041789]
[1773598558421,0.041783,71789.0,71777.0,0.041789]
[1773598558610,0.0014,71788.0,71770.0,0.06863195]
[1773598558810,0.0014,71787.0,71770.0,0.06863195]
[1773598559007,0.041782,71789.0,71770.0,0.06863195]
[1773598559210,0.0014,71788.0,71770.0,0.06863195]
[1773598559612,0.041782,71789.0,71770.0,0.06863195]
[1773598559925,0.0014,71788.0,71770.0,0.06863195]
[1773598560129,0.041783,71788.0,71776.0,0.041789]
[1773598560330,0.0014,71787.0,71776.0,0.041789]
[1773598560509,0.0014,71787.0,71760.0,0.08746727]
[1773598560510,0.06344209,71801.0,71783.0,0.041785]
[1773598560709,0.06344209,71792.0,71769.0,0.06863195]
[1773598561020,0.10522609,71787.0,71774.0,0.041791]
[1773598561514,0.10522609,71787.0,71765.0,0.06863195]
[1773598561515,0.10522609,71787.0,71775.0,0.04179]
[1773598563425,0.043182,71791.0,71770.0,0.06863195]
[1773598563721,0.043182,71791.0,71764.0,0.0529969]
[1773598563722,0.06344209,71789.0,71764.0,0.0529969]
[1773598564023,0.06344209,71788.0,71765.0,0.06863195]
[1773598564610,0.0014,71787.0,71765.0,0.06863195]
[1773598565010,0.0014,71787.0,71775.0,0.04179]
[1773598566126,0.0014,71787.0,71776.0,0.04179]
[1773598567916,0.0014,71787.0,71768.0,0.06863195]
[1773598568218,0.12724728,71803.0,71764.0,0.0529969]
[1773598568219,0.041781,71792.0,71773.0,0.06863195]
[1773598568520,0.0014,71791.0,71773.0,0.06863195]
[1773598568717,0.0014,71791.0,71779.0,0.041788]
[1773598569226,0.0014,71791.0,71780.0,0.041787]
[1773598569726,0.041781,71792.0,71780.0,0.041787]
[1773598569924,0.0014,71791.0,71781.0,0.041787]
[1773598570719,0.06344209,71797.0,71782.0,0.041786]
[1773598570920,0.0014,71796.0,71782.0,0.041786]
[1773598571122,0.0014,71796.0,71783.0,0.041786]
[1773598571432,0.0014,71795.0,71784.0,0.041785]
[1773598571726,0.0014,71794.0,71784.0,0.041785]
[1773598572125,0.041779,71796.0,71784.0,0.041785]
[1773598572318,0.0014,71793.0,71784.0,0.041785]
[1773598572622,0.041779,71796.0,71782.0,0.041786]
[1773598572816,0.041779,71796.0,71777.0,0.06863195]
[1773598572817,0.15090936,71800.0,71777.0,0.06863195]
[1773598573018,0.041778,71797.0,71777.0,0.06863195]
[1773598573418,0.0764657,71812.0,71781.0,0.06863195]
[1773598573419,0.06344209,71805.0,71781.0,0.06863195]
[1773598573618,0.0014,71804.0,71781.0,0.06863195]
[1773598573820,0.041775,71803.0,71782.0,0.06863195]
[1773598574025,0.06344209,71805.0,71788.0,0.041783]
[1773598574026,0.0014,71802.0,71788.0,0.041783]
[1773598574517,0.041776,71801.0,71789.0,0.041782]
[1773598574920,0.0014,71800.0,71789.0,0.041782]
[1773598575318,0.041776,71801.0,71789.0,0.041782]
[1773598575519,0.08886727,71800.0,71769.0,0.06863195]
[1773598575720,0.08746727,71790.0,71769.0,0.06863195]
[1773598575920,0.0014,71789.0,71769.0,0.06863195]
[1773598576823,0.0014,71789.0,71780.0,0.041787]
[1773598578530,0.0014,71789.0,71780.0,0.03480542]
[1773598584825,0.0014,71789.0,71781.0,0.041787]
[1773598594633,0.0014,71789.0,71771.0,0.06891046]
[1773598594838,2.0014,71789.0,71773.0,0.06891046]
[1773598596839,2.0014,71789.0,71780.0,0.041788]
[1773598598339,2.0014,71789.0,71782.0,0.041786]
[1773598599140,0.0014,71788.0,71782.0,0.041786]
[1773598599341,1.5254,71789.0,71782.0,0.041786]
[1773598599543,0.0014,71788.0,71782.0,0.041786]
[1773598606436,0.0014,71788.0,71770.0,0.1562929]
[1773598606638,0.0014,71788.0,71773.0,0.16617102]
[1773598606937,0.0014,71788.0,71782.0,0.041786]
[1773598617039,0.0014,71788.0,71768.0,0.0014]
[1773598617445,0.0014,71788.0,71770.0,0.08738244]
[1773598617652,0.19657598,71787.0,71770.0,0.08738244]
[1773598617849,0.0014,71788.0,71771.0,0.06026664]
[1773598618042,0.19657598,71787.0,71781.0,0.041787]
[1773598618244,0.08738244,71800.0,71782.0,0.041786]
[1773598618245,0.0014,71786.0,71782.0,0.041786]
[1773598618438,0.041779,71795.0,71782.0,0.041786]
[1773598618644,0.19797725,71794.0,71782.0,0.041786]
[1773598618943,0.17806024,71793.0,71782.0,0.041786]
[1773598619249,0.0014,71792.0,71782.0,0.041786]
[1773598620154,0.0014,71791.0,71782.0,0.041786]
[1773598620652,0.0014,71790.0,71782.0,0.041786]
[1773598620853,0.0014,71790.0,71783.0,0.041785]
[1773598621052,0.041779,71796.0,71783.0,0.041785]
[1773598621248,0.04178,71794.0,71781.0,0.041787]
[1773598621648,0.0014,71793.0,71782.0,0.041786]
[1773598621951,0.04178,71794.0,71782.0,0.041786]
[1773598622158,0.0014,71792.0,71782.0,0.041786]
[1773598622358,0.0014,71791.0,71788.0,0.041783]
[1773598622558,0.0014,71790.0,71786.0,0.041784]
[1773598622752,0.0014,71789.0,71786.0,0.041784]
[1773598623060,0.0014,71788.0,71776.0,0.05488243]
[1773598623354,0.07732892,71798.0,71787.0,0.041783]
[1773598623552,0.0014,71797.0,71787.0,0.041783]
[1773598626160,0.0014,71797.0,71788.0,0.041783]
[1773598627157,0.041774,71804.0,71791.0,0.041781]
[1773598627461,0.043175,71803.0,71791.0,0.041781]
[1773598627648,0.0014,71802.0,71791.0,0.041781]
[1773598628662,0.0014,71802.0,71788.0,0.05435405]
[1773598628663,0.043175,71802.0,71789.0,0.041782]
[1773598631758,0.07688218,71807.0,71788.0,0.05435405]
[1773598631957,0.043173,71806.0,71788.0,0.05435405]
[1773598632354,0.0014,71805.0,71788.0,0.05435405]
[1773598632965,0.0014,71805.0,71793.0,0.04178]
[1773598635864,0.043173,71805.0,71793.0,0.04178]
[1773598636257,0.07435043,71799.0,71787.0,0.041783]
[1773598636459,0.07435043,71797.0,71787.0,0.041783]
[1773598638951,0.19268483,71796.0,71787.0,0.041783]
[1773598639266,0.19268483,71795.0,71787.0,0.041783]
[1773598639468,0.19268483,71794.0,71787.0,0.041783]
[1773598639768,0.19268483,71793.0,71787.0,0.041783]
[1773598639957,0.07435043,71797.0,71787.0,0.041783]
[1773598640159,0.19268032,71796.0,71787.0,0.041783]
[1773598640363,0.19268032,71795.0,71787.0,0.041783]
[1773598640567,0.19268032,71794.0,71787.0,0.041783]
[1773598640757,0.19268032,71793.0,71787.0,0.041783]
[1773598641057,0.07435043,71797.0,71787.0,0.041783]
[1773598641353,0.19267705,71796.0,71787.0,0.041783]
[1773598641557,0.19267705,71795.0,71787.0,0.041783]
[1773598641767,0.19267705,71794.0,71787.0,0.041783]
[1773598641964,0.19267705,71793.0,71787.0,0.041783]
[1773598642164,0.19267705,71792.0,71787.0,0.041783]
[1773598642367,0.0014,71791.0,71787.0,0.041783]
[1773598645867,0.07435043,71797.0,71787.0,0.041783]
[1773598646071,0.19407626,71796.0,71787.0,0.041783]
[1773598646269,0.19248968,71795.0,71773.0,0.06723222]
[1773598646562,0.0014,71794.0,71788.0,0.041783]
[1773598646769,0.0014,71793.0,71788.0,0.041783]
[1773598646962,0.0014,71792.0,71788.0,0.041783]
[1773598647159,0.041776,71800.0,71788.0,0.041783]
[1773598647363,0.0014,71799.0,71788.0,0.041783]
[1773598647558,0.0014,71798.0,71788.0,0.041783]
[1773598647752,0.0014,71797.0,71788.0,0.041783]
[1773598651068,0.0014,71796.0,71788.0,0.041783]
[1773598651271,0.0014,71795.0,71788.0,0.041783]
[1773598651464,0.12915844,71800.0,71788.0,0.041783]
[1773598651670,0.0014,71794.0,71788.0,0.041783]
[1773598651865,0.0014,71793.0,71788.0,0.041783]
[1773598652064,0.0014,71792.0,71788.0,0.041783]
[1773598654469,0.0014,71793.0,71788.0,0.041783]
[1773598655469,0.12915844,71800.0,71788.0,0.041783]
[1773598655677,0.0014,71799.0,71788.0,0.041783]
[1773598655867,0.12915844,71800.0,71788.0,0.041783]
[1773598656070,0.0014,71799.0,71788.0,0.041783]
[1773598656569,0.0014,71799.0,71789.0,0.041782]
[1773598658271,0.19271059,71798.0,71789.0,0.041782]
[1773598658472,0.19271059,71797.0,71789.0,0.041782]
[1773598658670,0.19271059,71796.0,71789.0,0.041782]
[1773598658967,0.19271059,71795.0,71789.0,0.041782]
[1773598659172,0.19271059,71794.0,71789.0,0.041782]
[1773598659374,0.19271059,71793.0,71789.0,0.041782]
[1773598659573,0.08020887,71798.0,71777.0,0.06371998]
[1773598659873,0.1927191,71797.0,71787.0,0.041783]
[1773598660071,0.1927191,71796.0,71787.0,0.041783]
[1773598660372,0.1927191,71795.0,71787.0,0.041783]
[1773598660563,0.1927191,71794.0,71787.0,0.041783]
[1773598660765,0.1927191,71793.0,71787.0,0.041783]
[1773598660969,0.0014,71792.0,71787.0,0.041783]
[1773598664874,0.0014,71792.0,71779.0,0.06371998]
[1773598665079,0.0014,71792.0,71788.0,0.041783]
[1773598665268,0.08736503,71800.0,71788.0,0.041783]
[1773598665269,0.0014,71793.0,71788.0,0.041783]
[1773598665469,0.19275792,71792.0,71788.0,0.041783]
[1773598665668,0.0014,71793.0,71788.0,0.041783]
[1773598665870,0.19275769,71792.0,71788.0,0.041783]
[1773598666066,0.0014,71793.0,71788.0,0.041783]
[1773598666270,0.03191238,71792.0,71788.0,0.041783]
[1773598666571,0.0014,71793.0,71788.0,0.041783]
[1773598680890,0.0014,71793.0,71789.0,0.041782]
[1773598681281,0.16887228,71820.0,71791.0,0.06146117]
[1773598681282,0.08586818,71819.0,71791.0,0.06146117]
[1773598681482,0.12763418,71817.0,71803.0,0.041774]
[1773598681692,0.041767,71816.0,71803.0,0.041774]
[1773598681889,0.041768,71815.0,71803.0,0.041774]
[1773598682091,0.0014,71814.0,71801.0,0.06163248]
[1773598682393,0.0014,71813.0,71808.0,0.041771]
[1773598682594,0.041764,71821.0,71808.0,0.041771]
[1773598682894,0.0014,71820.0,71808.0,0.041771]
[1773598683193,0.041764,71821.0,71808.0,0.041771]
[1773598683394,0.0014,71820.0,71808.0,0.041771]
[1773598683789,0.0014,71819.0,71808.0,0.041771]
[1773598683990,0.0014,71818.0,71808.0,0.041771]
[1773598684392,0.041764,71821.0,71808.0,0.041771]
[1773598684585,0.0014,71820.0,71808.0,0.041771]
[1773598684986,0.0014,71819.0,71808.0,0.041771]
[1773598685392,0.041764,71821.0,71808.0,0.041771]
[1773598685590,0.0014,71820.0,71808.0,0.041771]
[1773598687084,0.0014,71819.0,71804.0,0.05609689]
[1773598687386,0.14339222,71833.0,71800.0,0.08736503]
[1773598687387,0.0014,71818.0,71813.0,0.041768]
[1773598687590,0.12762718,71830.0,71808.0,0.05609689]
[1773598687787,0.12762718,71830.0,71792.0,0.04178]
[1773598687788,0.0014,71829.0,71821.0,0.041764]
[1773598687992,0.00069608,71831.0,71821.0,0.041764]
[1773598688298,0.00069608,71831.0,71811.0,0.05469689]
[1773598688483,0.0014,71830.0,71811.0,0.05469689]
[1773598688687,0.0014,71830.0,71825.0,0.041761]
[1773598688891,0.00069608,71831.0,71825.0,0.041761]
[1773598689096,0.0014,71830.0,71825.0,0.041761]
[1773598689482,0.00069608,71831.0,71825.0,0.041761]
[1773598689692,0.00069608,71831.0,71820.0,0.05386106]
[1773598689693,8e-08,71831.0,71827.0,0.04176]
[1773598689991,8e-08,71831.0,71803.0,0.041774]
[1773598689992,0.08586818,71834.0,71810.0,0.08736503]
[1773598690194,0.08586818,71834.0,71810.0,0.13853444]
[1773598690393,0.12762518,71834.0,71821.0,0.041763]
[1773598691695,0.041755,71836.0,71814.0,0.05295216]
[1773598691897,0.0014,71833.0,71810.0,0.08876503]
[1773598692102,0.0014,71833.0,71818.0,0.05526014]
[1773598692800,0.0014,71833.0,71827.0,0.04176]
[1773598693902,0.0014,71833.0,71812.0,0.05478194]
[1773598694093,0.0014,71833.0,71805.0,0.0014]
[1773598694094,0.08586818,71826.0,71805.0,0.0014]
[1773598694294,0.08586818,71826.0,71800.0,0.08736503]
[1773598694295,0.041763,71823.0,71802.0,0.05482071]
[1773598694494,0.12763118,71823.0,71810.0,0.04177]
[1773598694693,0.08586818,71823.0,71810.0,0.04177]
[1773598695600,0.043162,71825.0,71803.0,0.0014]